bitfinex/quotes_SOLUSD_20250602
["timestamp","ask_amount","ask_price","bid_price","bid_amount"]
[1748828315542,10.14,158.34,158.33,20.31396639]
[1748828316124,10.14,158.34,158.33,6.31592244]
[1748828316630,10.14,158.34,158.29,6.31751847]
[1748828316842,10.14,158.34,158.29,20.31556242]
[1748828316843,13.99804395,158.33,158.29,20.31556242]
[1748828317239,62.99804395,158.34,158.29,20.31556242]
[1748828317537,62.99804395,158.34,158.3,13.99804395]
[1748828317738,148.9,158.33,158.3,13.99804395]
[1748828318355,148.9,158.33,158.32,13.99804395]
[1748828319335,148.9,158.33,158.31,13.99804395]
[1748828319749,148.9,158.33,158.32,20.31436532]
[1748828325036,148.9,158.33,158.24,55.59561725]
[1748828325037,181.54769281,158.33,158.3,6.31711939]
[1748828325250,167.54964886,158.33,158.3,6.31711939]
[1748828326054,148.9,158.33,158.3,20.31516334]
[1748828326257,148.9,158.33,158.31,13.99804395]
[1748828328070,18.64964886,158.32,158.26,6.31871603]
[1748828328361,18.64964886,158.32,158.28,13.99804395]
[1748828329779,18.64964886,158.32,158.28,20.31562198]
[1748828330339,32.64769281,158.32,158.28,20.31562198]
[1748828331175,32.64769281,158.32,158.28,6.31757803]
[1748828332739,148.9,158.31,158.28,6.31757803]
[1748828333342,148.9,158.31,158.29,13.99804395]
[1748828334343,148.9,158.31,158.3,6.31711939]
[1748828335566,148.9,158.31,158.29,6.31737894]
[1748828335749,148.9,158.31,158.27,13.99804395]
[1748828336145,148.9,158.31,158.3,13.99804395]
[1748828336668,148.9,158.31,158.29,13.99804395]
[1748828337753,148.9,158.31,158.28,13.99804395]
[1748828339251,148.9,158.31,158.29,6.31751847]
[1748828339463,148.9,158.31,158.29,20.31556242]
[1748828340866,148.9,158.31,158.28,13.99804395]
[1748828341172,18.64964886,158.28,158.24,6.31951466]
[1748828341377,13.99804395,158.27,158.24,6.31951466]
[1748828341565,13.99804395,158.26,158.23,6.31978117]
[1748828342068,13.99804395,158.26,158.21,6.32071297]
[1748828342287,13.99804395,158.24,158.21,6.32071297]
[1748828342568,13.99804395,158.23,158.21,6.32071297]
[1748828342779,13.99804395,158.23,158.2,6.32111251]
[1748828342969,162.89804395,158.22,158.19,6.32137159]
[1748828343159,162.89804395,158.22,158.15,6.32311097]
[1748828343483,59.02504886,158.25,158.15,6.32311097]
[1748828343484,10.12,158.23,158.21,13.99804395]
[1748828344271,10.12,158.23,158.22,13.99804395]
[1748828344473,159.02,158.27,158.22,13.99804395]
[1748828344674,159.02,158.27,158.23,20.31795799]
[1748828345650,159.02,158.27,158.24,13.99804395]
[1748828346555,159.02,158.27,158.23,36.11774311]
[1748828347574,159.02,158.27,158.23,13.99804395]
[1748828348488,197.86,158.31,158.26,13.99804395]
[1748828348651,197.86,158.31,158.27,13.99804395]
[1748828349057,159.02,158.31,158.27,13.99804395]
[1748828349252,173.01804395,158.31,158.27,13.99804395]
[1748828349458,173.01804395,158.31,158.28,6.31791761]
[1748828349658,159.02,158.31,158.28,6.31791761]
[1748828349870,159.02,158.31,158.28,20.31596156]
[1748828350469,159.02,158.31,158.28,6.31791761]
[1748828350957,173.01804395,158.31,158.28,6.31791761]
[1748828351375,159.02,158.31,158.28,20.31596156]
[1748828351679,159.02,158.31,158.3,6.31711939]
[1748828352265,159.02,158.31,158.3,20.31516334]
[1748828352580,148.9,158.31,158.3,20.31516334]
[1748828353669,148.9,158.31,158.28,13.99804395]
[1748828354370,148.9,158.31,158.24,94.6363873]
[1748828354371,148.9,158.31,158.27,13.99804395]
[1748828355458,148.9,158.31,158.28,13.99804395]
[1748828355662,148.9,158.31,158.28,20.31561707]
[1748828357000,148.9,158.31,158.28,6.31757312]
[1748828357001,187.74,158.31,158.28,6.31757312]
[1748828357196,187.74,158.31,158.28,20.31561707]
[1748828359097,148.9,158.31,158.29,13.99804395]
[1748828359289,148.9,158.31,158.3,13.99804395]
[1748828360978,148.9,158.31,158.3,20.31516334]
[1748828364594,148.9,158.31,158.3,6.31711939]
[1748828365001,148.9,158.31,158.28,15.79479403]
[1748828365206,148.9,158.31,158.3,13.99804395]
[1748828365406,148.9,158.31,158.29,13.99804395]
[1748828366908,148.9,158.31,158.28,13.99804395]
[1748828367400,187.74,158.31,158.28,13.99804395]
[1748828368090,187.74,158.31,158.27,13.99804395]
[1748828368475,167.54964886,158.3,158.27,13.99804395]
[1748828368679,167.54964886,158.3,158.25,6.31911532]
[1748828368680,167.54964886,158.3,158.26,13.99804395]
[1748828369082,167.54964886,158.3,158.26,20.31654471]
[1748828369684,167.54964886,158.3,158.23,6.31991404]
[1748828369685,18.64964886,158.28,158.23,6.31991404]
[1748828370003,187.74,158.27,158.23,20.31795799]
[1748828371695,187.74,158.27,158.24,13.99804395]
[1748828373402,187.74,158.27,158.24,20.31755249]
[1748828374314,187.74,158.27,158.25,13.99804395]
[1748828375406,187.74,158.27,158.24,13.99804395]
[1748828376192,187.74,158.27,158.2,22.12308941]
[1748828376386,187.74,158.27,158.25,13.99804395]
[1748828376888,187.74,158.27,158.24,13.99804395]
[1748828377486,187.74,158.27,158.25,6.31911532]
[1748828378708,187.74,158.27,158.25,13.99804395]
[1748828379685,187.74,158.27,158.26,13.99804395]
[1748828379922,148.9,158.27,158.26,13.99804395]
[1748828380287,148.9,158.27,158.22,15.80054526]
[1748828380492,148.9,158.27,158.26,13.99804395]
[1748828380990,148.9,158.27,158.26,20.31675998]
[1748828381415,148.9,158.27,158.26,6.31871603]
[1748828381790,148.9,158.27,158.25,20.31703819]
[1748828384713,148.9,158.27,158.26,13.99804395]
[1748828386203,148.9,158.27,158.25,20.31703819]
[1748828390320,148.9,158.27,158.26,13.99804395]
[1748828391020,148.9,158.27,158.26,20.31675998]
[1748828394402,148.9,158.27,158.26,6.31871603]
[1748828394605,148.9,158.27,158.25,6.31895787]
[1748828396124,148.9,158.27,158.24,6.31935902]
[1748828396830,148.9,158.27,158.23,20.31781708]
[1748828397900,148.9,158.26,158.23,20.31781708]
[1748828398312,187.74,158.26,158.23,20.31781708]
[1748828400027,187.74,158.26,158.2,22.12389379]
[1748828400208,187.74,158.26,158.23,13.99804395]
[1748828401129,187.74,158.26,158.24,6.31951466]
[1748828402817,48.96,158.29,158.25,13.99804395]
[1748828403030,48.96,158.29,158.27,13.99804395]
[1748828404844,48.96,158.29,158.28,6.31791761]
[1748828405215,48.96,158.29,158.25,6.31911532]
[1748828405530,48.96,158.29,158.27,13.99804395]
[1748828405917,10.12,158.29,158.27,13.99804395]
[1748828406837,10.12,158.29,158.27,20.31611491]
[1748828407622,10.12,158.29,158.28,13.99804395]
[1748828408133,148.9,158.31,158.28,13.99804395]
[1748828408434,148.9,158.31,158.3,13.99804395]
[1748828409311,148.9,158.31,158.3,20.31516334]
[1748828410234,148.9,158.31,158.28,13.99804395]
[1748828411217,18.64964886,158.3,158.26,13.99804395]
[1748828411411,18.64964886,158.3,158.27,6.3183168]
[1748828412736,148.9,158.29,158.27,6.3183168]
[1748828413040,148.9,158.29,158.27,20.31636075]
[1748828421546,148.9,158.29,158.28,13.99804395]
[1748828422451,148.9,158.29,158.27,20.31636075]
[1748828424049,148.9,158.29,158.27,6.3183168]
[1748828424350,38.82,158.3,158.24,6.31951466]
[1748828424351,181.54769281,158.28,158.24,6.31951466]
[1748828424647,38.82,158.27,158.26,13.99804395]
[1748828425655,38.82,158.27,158.26,20.31675998]
[1748828427152,148.9,158.28,158.26,20.31675998]
[1748828428959,148.9,158.28,158.27,13.99804395]
[1748828430567,148.9,158.28,158.27,20.31636075]
[1748828430734,10.1,158.3,158.27,36.11215275]
[1748828430930,38.82,158.32,158.29,13.99804395]
[1748828431134,38.82,158.32,158.3,13.99804395]
[1748828431850,38.82,158.32,158.31,6.31672035]
[1748828432839,38.82,158.32,158.31,20.3147643]
[1748828433244,38.82,158.32,158.31,19.9147643]
[1748828433940,1.5301,158.33,158.31,19.9147643]
[1748828434543,159.0,158.34,158.32,13.99804395]
[1748828434736,159.0,158.34,158.33,13.99804395]
[1748828436863,159.0,158.34,158.33,20.31396639]
[1748828437173,159.0,158.34,158.33,6.31592244]
[1748828437466,159.0,158.34,158.33,20.31396639]
[1748828439044,159.0,158.34,158.32,13.99804395]
[1748828440571,32.64769281,158.33,158.28,6.31791761]
[1748828440863,32.64769281,158.33,158.29,13.99804395]
[1748828440864,187.7,158.32,158.29,13.99804395]
[1748828441064,187.7,158.32,158.28,13.99804395]
[1748828441367,201.69804395,158.32,158.28,13.99804395]
[1748828442368,201.69804395,158.32,158.27,13.99804395]
[1748828443175,201.69804395,158.32,158.28,6.31791761]
[1748828444950,187.7,158.32,158.28,13.99804395]
[1748828447466,187.7,158.32,158.29,6.31751847]
[1748828449065,187.7,158.32,158.28,20.31588273]
[1748828450573,167.54964886,158.31,158.25,6.31911532]
[1748828450878,181.54769281,158.31,158.26,13.99804395]
[1748828452092,181.54769281,158.31,158.27,6.3183168]
[1748828454071,148.9,158.3,158.27,6.3183168]
[1748828457071,187.7,158.3,158.27,6.3183168]
[1748828458671,201.69804395,158.3,158.27,6.3183168]
[1748828458856,201.69804395,158.3,158.25,13.99804395]
[1748828459677,10.1,158.29,158.25,13.99804395]
[1748828460251,10.1,158.29,158.26,6.31871603]
[1748828462175,10.1,158.29,158.26,13.99804395]
[1748828463260,10.1,158.29,158.26,8.98911498]
[1748828465180,10.1,158.29,158.27,6.3183168]
[1748828466878,10.1,158.29,158.26,6.31871603]
[1748828469378,176.53876384,158.28,158.21,15.80092542]
[1748828469580,157.88911498,158.27,158.23,8.98911498]
[1748828469981,157.88911498,158.27,158.22,8.98911498]
[1748828470571,157.88911498,158.27,158.23,8.98911498]
[1748828472074,157.88911498,158.27,158.24,6.31951466]
[1748828472470,157.88911498,158.27,158.23,6.3198887]
[1748828472871,38.8,158.26,158.23,6.3198887]
[1748828477285,38.8,158.26,158.23,8.98911498]
[1748828478291,38.8,158.26,158.21,22.12163839]
[1748828478493,38.8,158.26,158.23,8.98911498]
[1748828480183,38.8,158.26,158.24,6.31951466]
[1748828488175,47.78911498,158.26,158.2,6.32111251]
[1748828488392,47.78911498,158.26,158.21,8.98911498]
[1748828488393,8.98911498,158.25,158.21,8.98911498]
[1748828488696,176.53876384,158.24,158.2,6.32111251]
[1748828488881,187.7,158.23,158.2,6.32111251]
[1748828489289,197.8,158.23,158.2,6.32111251]
[1748828490299,206.78911498,158.23,158.2,6.32111251]
[1748828490502,197.8,158.23,158.2,6.32111251]
[1748828491297,27.63876384,158.22,158.18,8.98911498]
[1748828491504,18.64964886,158.22,158.18,8.98911498]
[1748828492213,148.9,158.23,158.21,8.98911498]
[1748828492417,148.9,158.23,158.22,8.98911498]
[1748828493191,148.9,158.23,158.22,15.30942846]
[1748828493508,148.9,158.23,158.22,6.32031348]
[1748828494216,148.9,158.23,158.21,6.32056604]
[1748828494382,38.8,158.22,158.21,6.32056604]
[1748828495114,57.44964886,158.22,158.17,6.32231143]
[1748828495313,57.44964886,158.22,158.18,8.98911498]
[1748828496191,57.44964886,158.22,158.19,6.3215121]
[1748828497162,37.73876384,158.21,158.17,6.32231143]
[1748828497991,28.74964886,158.21,158.18,8.98911498]
[1748828498391,148.9,158.2,158.18,8.98911498]
[1748828498589,148.9,158.2,158.19,6.3215121]
[1748828500399,148.9,158.2,158.18,6.32191174]
[1748828501201,148.9,158.19,158.16,6.32244454]
[1748828501594,187.7,158.19,158.16,6.32244454]
[1748828503313,187.7,158.19,158.16,8.98911498]
[1748828504208,187.7,158.19,158.17,6.32231143]
[1748828504922,176.53876384,158.18,158.12,15.31342563]
[1748828505100,18.64964886,158.16,158.12,15.31342563]
[1748828505291,66.43876384,158.16,158.12,6.32431065]
[1748828505491,57.44964886,158.16,158.14,8.98911498]
[1748828505726,57.44964886,158.16,158.11,8.33333333]
[1748828505927,18.64964886,158.14,158.11,8.33333333]
[1748828506223,38.8,158.13,158.11,8.33333333]
[1748828506409,38.8,158.13,158.11,17.32244831]
[1748828507211,38.8,158.13,158.12,14.07375813]
[1748828508427,158.98,158.15,158.12,20.39806878]
[1748828508718,158.98,158.15,158.14,14.07375813]
[1748828512420,158.98,158.15,158.14,20.39726894]
[1748828515705,10.08,158.15,158.13,14.07375813]
[1748828516113,10.08,158.15,158.14,14.07375813]
[1748828518115,10.08,158.15,158.14,20.39726894]
[1748828521717,58.87533869,158.18,158.14,20.39726894]
[1748828521937,148.9,158.17,158.14,14.07375813]
[1748828522319,148.9,158.17,158.15,14.07375813]
[1748828522841,148.9,158.17,158.14,14.07375813]
[1748828525143,148.9,158.16,158.14,14.07375813]
[1748828526642,18.64964886,158.14,158.11,14.07375813]
[1748828526836,40.3703,158.15,158.12,14.07375813]
[1748828527339,40.3703,158.15,158.13,14.07375813]
[1748828528137,58.72340699,158.14,158.09,14.07375813]
[1748828528344,24.15375813,158.13,158.08,14.07375813]
[1748828528547,18.64964886,158.11,158.08,14.07375813]
[1748828530335,24.97469303,158.11,158.07,14.07375813]
[1748828531156,24.97469303,158.11,158.04,32.32713323]
[1748828531460,24.97469303,158.11,158.07,14.07375813]
[1748828531963,14.07375813,158.1,158.05,14.07375813]
[1748828532248,18.64964886,158.08,158.05,14.07375813]
[1748828532544,57.44964886,158.08,158.05,14.07375813]
[1748828533252,1.5451,158.07,158.02,6.32831287]
[1748828533539,1.5451,158.07,158.04,14.07375813]
[1748828534150,1.5451,158.07,158.05,14.07375813]
[1748828535228,11.6251,158.07,158.04,14.07375813]
[1748828535450,30.27474886,158.07,158.04,14.07375813]
[1748828535725,58.99474886,158.07,158.04,14.07375813]
[1748828536550,58.99474886,158.07,158.05,14.07375813]
[1748828537462,58.99474886,158.07,158.06,14.07375813]
[1748828539437,58.99474886,158.07,158.05,14.07375813]
[1748828539948,58.99474886,158.07,158.03,6.32790862]
[1748828540149,58.99474886,158.07,158.05,14.07375813]
[1748828541130,40.3451,158.07,158.06,14.07375813]
[1748828541337,38.8,158.07,158.06,14.07375813]
[1748828541850,38.8,158.07,158.02,14.07375813]
[1748828541851,18.64964886,158.06,158.02,14.07375813]
[1748828542041,167.54964886,158.06,158.02,14.07375813]
[1748828542647,173.87654927,158.06,158.02,14.07375813]
[1748828543053,148.9,158.05,158.0,8.33333333]
[1748828543355,18.64964886,158.04,158.02,14.07375813]
[1748828544438,148.9,158.05,158.02,14.07375813]
[1748828544644,148.9,158.05,158.04,14.07375813]
[1748828545151,148.9,158.05,158.01,6.32871337]
[1748828545343,148.9,158.05,158.03,14.07375813]
[1748828546454,18.64964886,158.03,158.0,8.33333333]
[1748828546636,57.46964886,158.03,158.0,22.40709146]
[1748828547168,57.46964886,158.03,158.0,8.33333333]
[1748828548259,57.46964886,158.03,158.01,14.07375813]
[1748828548439,38.82,158.03,158.01,14.07375813]
[1748828550357,18.64964886,158.02,158.0,8.33333333]
[1748828555363,18.64964886,158.02,158.0,22.40709146]
[1748828555549,18.64964886,158.02,158.0,8.33333333]
[1748828558644,24.97805063,158.02,158.0,8.33333333]
[1748828559738,24.97805063,158.02,158.01,8.33333333]
[1748828560758,39.05180876,158.02,158.01,8.33333333]
[1748828562347,71.61680876,158.02,158.01,8.33333333]
[1748828562551,45.61680876,158.02,158.01,8.33333333]
[1748828568162,45.61680876,158.02,158.01,6.66673333]
[1748828568353,45.61680876,158.02,157.96,0.8426261]
[1748828568354,44.64964886,157.97,157.96,0.8426261]
[1748828568556,97.56340699,157.97,157.96,0.8426261]
[1748828569869,44.64964886,157.97,157.96,0.8426261]
[1748828570174,26.0,158.0,157.96,14.91638423]
[1748828570342,32.32915558,158.0,157.96,14.91638423]
[1748828571271,32.32917014,158.0,157.96,14.91638423]
[1748828572258,26.0,158.0,157.96,21.24706827]
[1748828572564,46.40293981,158.0,157.96,0.8426261]
[1748828573147,26.0,158.0,157.97,14.07375813]
[1748828574671,26.0,158.0,157.97,20.40407245]
[1748828576043,26.0,158.0,157.97,14.07375813]
[1748828580449,18.64964886,157.99,157.96,14.91638423]
[1748828580648,18.64964886,157.99,157.97,14.07375813]
[1748828580952,26.0,158.0,157.97,14.07375813]
[1748828581154,26.0,158.0,157.98,14.07375813]
[1748828581351,26.0,158.0,157.96,7.17326521]
[1748828581352,26.0,158.0,157.97,14.07375813]
[1748828581557,26.0,158.0,157.98,14.07375813]
[1748828584281,148.9,157.99,157.98,14.07375813]
[1748828584474,148.9,157.99,157.92,10.1]
[1748828584653,148.9,157.99,157.98,14.07375813]
[1748828588187,167.54964886,157.99,157.92,17.07635277]
[1748828588354,38.84,157.98,157.93,6.3319192]
[1748828588689,38.84,157.98,157.97,14.07375813]
[1748828589253,167.54964886,157.97,157.89,6.33352333]
[1748828589453,181.62340699,157.97,157.92,14.07375813]
[1748828589653,167.54964886,157.97,157.95,14.07375813]
[1748828590057,167.54964886,157.97,157.94,14.07375813]
[1748828590288,173.88005561,157.97,157.93,14.07375813]
[1748828590474,18.64964886,157.95,157.93,14.07375813]
[1748828590681,38.84,157.94,157.93,14.07375813]
[1748828591472,38.84,157.94,157.89,6.33352333]
[1748828591676,38.84,157.94,157.93,14.07375813]
[1748828592378,187.74,157.96,157.93,14.07375813]
[1748828592583,187.74,157.96,157.95,14.07375813]
[1748828593483,187.74,157.96,157.89,22.16733167]
[1748828593688,187.74,157.96,157.94,14.07375813]
[1748828595384,187.74,157.96,157.93,14.07375813]
[1748828595602,187.74,157.96,157.94,14.07375813]
[1748828599087,148.9,157.95,157.94,14.07375813]
[1748828600996,167.54964886,157.95,157.94,14.07375813]
[1748828604901,18.64964886,157.95,157.94,14.07375813]
[1748828606493,38.84,157.96,157.94,20.40525938]
[1748828606697,57.48964886,157.96,157.95,14.07375813]
[1748828610405,57.48964886,157.96,157.92,6.33222555]
[1748828610588,57.48964886,157.96,157.95,14.07375813]
[1748828610791,57.48964886,157.96,157.94,14.07375813]
[1748828614205,18.64964886,157.95,157.94,14.07375813]
[1748828614515,18.64964886,157.95,157.93,14.07375813]
[1748828614712,18.64964886,157.95,157.94,14.07375813]
[1748828616194,38.84,157.96,157.94,14.07375813]
[1748828616412,28.74964886,157.98,157.95,14.07375813]
[1748828616601,38.84,157.97,157.96,14.07375813]
[1748828616997,18.64964886,158.0,157.96,14.07375813]
[1748828617311,18.64964886,158.01,157.99,14.07375813]
[1748828617495,38.84,158.0,157.99,14.07375813]
[1748828617693,28.74964886,158.02,157.99,14.07375813]
[1748828618012,38.84,158.02,158.01,14.07375813]
[1748828618212,53.38335074,158.03,158.01,14.07375813]
[1748828618518,53.38335074,158.03,158.02,14.07375813]
[1748828619415,14.54335074,158.03,158.02,14.07375813]
[1748828623523,33.1929996,158.03,158.02,14.07375813]
[1748828623821,18.64964886,158.02,158.0,14.07375813]
[1748828624115,167.54964886,158.02,158.0,14.07375813]
[1748828624521,181.62340699,158.02,157.93,6.3319192]
[1748828624829,1.5804,157.98,157.94,14.07375813]
[1748828625119,18.64964886,157.96,157.94,14.07375813]
[1748828627709,18.64964886,157.96,157.93,14.07375813]
[1748828628504,148.9,157.95,157.93,14.07375813]
[1748828628705,18.64964886,157.94,157.92,0.083923]
[1748828629011,148.9,157.93,157.92,0.083923]
[1748828630208,148.9,157.93,157.92,14.15768113]
[1748828631315,148.9,157.93,157.92,20.49000129]
[1748828635513,148.9,157.93,157.92,14.15768113]
[1748828636417,148.9,157.93,157.92,20.49000129]
[1748828638033,148.9,157.93,157.92,14.15768113]
[1748828640024,148.9,157.93,157.92,0.083923]
[1748828640248,148.9,157.93,157.92,14.15768113]
[1748828642551,148.9,157.93,157.92,0.083923]
[1748828642843,167.54964886,157.93,157.92,0.083923]
[1748828643842,18.64964886,157.93,157.92,0.083923]
[1748828645338,24.98156806,157.93,157.92,0.083923]
[1748828647838,18.64964886,157.93,157.92,0.083923]
[1748828651955,32.72340699,157.93,157.92,0.083923]
[1748828652265,18.64964886,157.93,157.92,0.083923]
[1748828653562,57.48964886,157.95,157.92,14.15768113]
[1748828653754,57.48964886,157.95,157.94,14.07375813]
[1748828654052,57.48964886,157.97,157.94,20.40527642]
[1748828654361,57.48964886,157.97,157.94,6.33151829]
[1748828654658,57.48964886,157.97,157.94,20.40527642]
[1748828655334,57.48964886,157.97,157.94,6.33151829]
[1748828655534,18.64964886,157.95,157.92,6.41586268]
[1748828655854,32.72340699,157.95,157.92,0.083923]
[1748828656371,18.64964886,157.95,157.92,0.083923]
[1748828658179,148.9,157.94,157.92,0.083923]
[1748828664042,148.9,157.93,157.92,0.083923]
[1748828667150,167.54964886,157.93,157.92,0.083923]
[1748828670568,206.38964886,157.93,157.92,0.083923]
[1748828672974,57.48964886,157.93,157.92,0.083923]
[1748828673465,38.84,157.93,157.92,14.15768113]
[1748828676266,38.84,157.93,157.92,20.49000129]
[1748828676457,38.84,157.93,157.92,0.083923]
[1748828676664,38.84,157.93,157.92,6.41624316]
[1748828677854,158.98,157.97,157.92,20.49000129]
[1748828678160,38.84,157.96,157.95,14.07375813]
[1748828679879,38.84,157.96,157.95,20.40487557]
[1748828680183,57.48964886,157.96,157.93,20.40567733]
[1748828681875,148.9,157.95,157.93,20.40567733]
[1748828683370,148.9,157.95,157.94,14.07375813]
[1748828684368,148.9,157.95,157.92,0.083923]
[1748828684580,148.9,157.95,157.93,14.07375813]
[1748828686487,148.9,157.95,157.93,20.40551417]
[1748828686696,148.9,157.95,157.93,14.07375813]
[1748828686859,148.9,157.95,157.92,6.41608829]
[1748828686860,18.64964886,157.94,157.92,14.15768113]
[1748828687786,148.9,157.93,157.92,14.15768113]
[1748828689480,148.9,157.93,157.92,14.15768113]
[1748828689889,148.9,157.93,157.92,20.49000129]
[1748828690977,187.72,157.93,157.92,20.49000129]
[1748828695193,187.72,157.93,157.92,9.11337621]
[1748828697376,187.72,157.93,157.92,15.44569637]
[1748828697577,148.9,157.93,157.92,15.44569637]
[1748828697788,187.72,157.93,157.92,15.44569637]
[1748828699276,187.72,157.93,157.92,0.083923]
[1748828700093,187.72,157.93,157.92,9.11337621]
[1748828701280,187.72,157.93,157.92,0.083923]
[1748828702082,206.36964886,157.93,157.92,0.083923]
[1748828702496,212.70156806,157.93,157.92,0.083923]
[1748828703981,214.28496806,157.93,157.92,0.083923]
[1748828705275,207.95304886,157.93,157.92,0.083923]
[1748828706408,206.36964886,157.93,157.92,0.083923]
[1748828709514,220.48179704,157.93,157.92,0.083923]
[1748828709891,226.81371624,157.93,157.92,0.083923]
[1748828710589,206.36964886,157.93,157.92,0.083923]
[1748828714616,57.46964886,157.93,157.92,0.083923]
[1748828716309,10.08,157.95,157.92,14.19607118]
[1748828716517,38.82,157.94,157.93,14.11214818]
[1748828716904,38.82,157.94,157.92,14.19607118]
[1748828717224,10.08,157.95,157.92,14.19607118]
[1748828717421,38.82,157.93,157.92,14.19607118]
[1748828718597,38.82,157.93,157.92,0.083923]
[1748828718802,57.46964886,157.93,157.92,0.083923]
[1748828719703,38.82,157.93,157.92,0.083923]
[1748828719913,38.82,157.93,157.92,20.52839134]
[1748828720112,10.08,157.95,157.92,20.52839134]
[1748828720299,10.08,157.95,157.94,14.11214818]
[1748828720509,38.82,157.95,157.94,14.11214818]
[1748828721619,38.82,157.95,157.94,20.44366647]
[1748828723110,38.82,157.95,157.94,14.11214818]
[1748828723315,38.82,157.95,157.94,20.44366647]
[1748828723519,38.82,157.95,157.94,14.11214818]
[1748828723919,148.9,157.96,157.94,20.44363452]
[1748828724113,38.82,157.95,157.94,20.44363452]
[1748828726432,148.9,157.96,157.94,20.44363452]
[1748828726618,148.9,157.96,157.95,14.11214818]
[1748828726930,187.72,157.96,157.95,14.11214818]
[1748828727129,187.72,157.96,157.94,20.44363452]
[1748828728608,148.9,157.96,157.94,20.44363452]
[1748828728808,38.82,157.95,157.94,20.44363452]
[1748828730728,38.8,157.96,157.94,20.44363452]
[1748828730925,38.8,157.96,157.95,14.11214818]
[1748828731711,38.8,157.97,157.95,14.11214818]
[1748828732432,38.8,157.97,157.96,14.11214818]
[1748828732818,148.9,157.98,157.96,14.11214818]
[1748828733024,38.8,157.97,157.93,22.16171721]
[1748828734127,10.08,157.99,157.96,14.11214818]
[1748828734325,167.54964886,158.02,157.98,14.11214818]
[1748828734522,18.64964886,158.0,157.98,14.11214818]
[1748828734725,18.64964886,158.0,157.97,14.11214818]
[1748828735437,38.8,158.01,157.98,14.11214818]
[1748828736914,38.8,158.01,157.99,14.11214818]
[1748828737125,38.8,158.01,158.0,14.11214818]
[1748828738820,38.8,158.01,158.0,20.4412621]
[1748828740337,38.8,158.01,158.0,14.11214818]
[1748828742834,38.8,158.01,157.98,6.32977494]
[1748828743033,38.8,158.01,157.98,14.11214818]
[1748828743720,38.8,158.01,157.99,14.11214818]
[1748828744745,38.8,158.01,158.0,14.11214818]
[1748828745338,148.9,158.02,158.0,14.11214818]
[1748828745531,148.9,158.02,158.01,14.11214818]
[1748828745737,187.7,158.02,158.01,14.11214818]
[1748828746046,187.7,158.02,158.01,20.44086155]
[1748828746047,148.9,158.02,158.01,20.44086155]
[1748828747244,148.9,158.02,158.01,15.34487495]
[1748828749027,158.96,158.07,158.01,15.34487495]
[1748828749229,158.96,158.07,158.01,6.32871337]
[1748828749230,38.78,158.05,158.01,6.32871337]
[1748828749432,38.78,158.05,158.01,22.1504968]
[1748828749834,158.96,158.07,158.01,22.1504968]
[1748828750143,38.78,158.06,158.01,22.1504968]
[1748828750343,38.78,158.06,158.05,14.08519386]
[1748828750641,148.9,158.07,158.05,14.08519386]
[1748828750843,187.68,158.07,158.06,14.08519386]
[1748828751441,187.68,158.07,158.05,14.08519386]
[1748828753468,187.68,158.07,158.06,14.08519386]
[1748828756898,194.00631112,158.07,158.06,14.08519386]
[1748828757194,187.68,158.07,158.06,14.08519386]
[1748828757690,194.00648063,158.07,158.05,14.08519386]
[1748828758188,18.64964886,158.06,158.02,14.08519386]
[1748828758371,32.73484272,158.06,158.02,14.08519386]
[1748828758770,42.79484272,158.06,158.01,14.08519386]
[1748828758988,148.9,158.05,158.01,14.08519386]
[1748828759390,155.22745525,158.05,158.01,14.08519386]
[1748828760271,38.78,158.04,158.02,14.08519386]
[1748828760492,38.78,158.04,158.03,14.08519386]
[1748828761781,38.78,158.04,158.02,14.08519386]
[1748828761980,38.78,158.04,158.01,14.08519386]
[1748828762689,45.10756595,158.04,158.01,14.08519386]
[1748828763400,45.10756595,158.04,158.0,14.08519386]
[1748828764589,45.10756595,158.04,157.97,6.33023337]
[1748828764768,32.73484272,158.03,157.98,14.08519386]
[1748828765170,18.64964886,158.03,157.99,14.08519386]
[1748828765370,51.22916595,158.04,158.0,14.08519386]